bitfinex/quotes_SOLUSD_20250917
["timestamp","ask_amount","ask_price","bid_price","bid_amount"]
[1758072191562,35.37600607,236.56,236.55,0.2]
[1758072192182,71.42866952,236.56,236.55,0.2]
[1758072192487,45.42866952,236.56,236.55,0.2]
[1758072193685,47.1224006,236.56,236.55,0.2]
[1758072195284,60.71799461,236.56,236.55,1e-08]
[1758072195490,26.28432314,236.53,236.52,0.03]
[1758072195675,5.14874872,236.53,236.52,0.03]
[1758072195982,4.41956327,236.53,236.52,0.03]
[1758072196375,8.64735678,236.53,236.52,0.03]
[1758072197182,10.34130304,236.53,236.52,0.03]
[1758072201391,9.04175755,236.53,236.52,0.74]
[1758072201607,30.5296409,236.53,236.52,0.74]
[1758072201771,28.83569464,236.53,236.52,0.74]
[1758072201973,2.83569464,236.53,236.52,0.74]
[1758072203990,8.36303364,236.53,236.52,0.74]
[1758072204189,5.527339,236.53,236.52,0.74]
[1758072204395,8.36303364,236.53,236.52,0.74]
[1758072205490,30.13524013,236.53,236.52,0.74]
[1758072205694,2.83569464,236.53,236.52,0.74]
[1758072206588,8.36303364,236.53,236.52,0.74]
[1758072207886,4.13524013,236.53,236.52,0.74]
[1758072208079,2.83569464,236.53,236.52,0.74]
[1758072210396,4.13524013,236.53,236.52,0.74]
[1758072212484,8.36303364,236.53,236.52,0.74]
[1758072212800,8.36303364,236.53,236.52,0.03]
[1758072213610,8.36303364,236.53,236.52,0.7]
[1758072216577,2.11569464,236.54,236.52,0.7]
[1758072216783,0.06,236.57,236.52,6.22751775]
[1758072217001,0.06,236.57,236.53,0.67]
[1758072217584,0.06,236.57,236.54,1.29954549]
[1758072217916,0.06,236.57,236.55,1.29954549]
[1758072218091,0.06,236.57,236.56,0.67]
[1758072221388,1.35954549,236.57,236.52,0.03]
[1758072221590,0.06,236.57,236.53,0.67]
[1758072222188,0.06,236.57,236.53,4.89779022]
[1758072222396,0.06,236.57,236.54,0.67]
[1758072223695,0.06,236.57,236.54,1.96954549]
[1758072224197,0.06,236.57,236.55,4.89743606]
[1758072224592,0.06,236.57,236.56,0.67]
[1758072225291,0.06,236.57,236.56,34.50954549]
[1758072226089,0.06,236.57,236.56,38.73680284]
[1758072226606,0.06,236.57,236.56,4.89725735]
[1758072226791,0.06,236.57,236.56,37.43725735]
[1758072227395,0.06,236.57,236.56,4.89725735]
[1758072227603,0.06,236.57,236.56,37.43725735]
[1758072229994,0.06,236.57,236.56,52.33239685]
[1758072230192,0.06,236.57,236.56,52.75512258]
[1758072230399,0.06,236.57,236.56,54.44763533]
[1758072231212,0.06,236.6,236.59,39.59559401]
[1758072231385,0.06,236.6,236.59,40.8951395]
[1758072231590,0.06,236.6,236.59,41.5651395]
[1758072232595,1e-08,236.6,236.59,59.00758474]
[1758072232801,1e-08,236.6,236.59,91.54758474]
[1758072233200,1e-08,236.6,236.59,59.00758474]
[1758072233391,1e-08,236.6,236.59,78.45186083]
[1758072233994,1e-08,236.6,236.59,4.89672133]
[1758072234194,1e-08,236.6,236.59,37.55672133]
[1758072237496,1e-08,236.6,236.59,4.89672133]
[1758072237712,1e-08,236.6,236.59,32.64]
[1758072238500,1e-08,236.6,236.55,4.22729692]
[1758072238711,1e-08,236.6,236.56,32.64]
[1758072238891,1e-08,236.6,236.56,33.3]
[1758072239619,1e-08,236.6,236.57,4.88707866]
[1758072239826,0.69,236.59,236.54,0.66]
[1758072240015,0.69,236.59,236.55,32.64]
[1758072240191,1.2995455,236.6,236.55,32.64]
[1758072240397,1.2995455,236.6,236.55,33.3]
[1758072241117,1.9895455,236.6,236.55,32.64]
[1758072241522,1e-08,236.6,236.55,36.86736432]
[1758072241716,1e-08,236.6,236.56,1.95954549]
[1758072242026,1e-08,236.6,236.58,1.29954549]
[1758072242236,1e-08,236.6,236.59,32.66]
[1758072242440,1e-08,236.6,236.59,33.32]
[1758072243908,1e-08,236.6,236.59,37.54672133]
[1758072244601,1e-08,236.6,236.59,77.14231534]
[1758072244807,1e-08,236.6,236.59,51.42663848]
[1758072245825,1e-08,236.6,236.59,51.84931061]
[1758072246626,1e-08,236.62,236.61,41.17946264]
[1758072246924,1e-08,236.63,236.62,13.87991715]
[1758072247141,1e-08,236.63,236.62,14.53991715]
[1758072247502,0.06,236.67,236.62,14.53991715]
[1758072247503,0.06,236.67,236.63,0.14216157]
[1758072247706,0.1,236.81,236.71,13.59559401]
[1758072247939,0.1,236.81,236.71,15.97759735]
[1758072248098,0.3,236.79,236.71,52.45971809]
[1758072248925,0.3,236.79,236.71,54.45158655]
[1758072249336,0.3,236.79,236.71,54.43158655]
[1758072249504,0.99,236.79,236.71,54.43158655]
[1758072250328,0.99,236.79,236.71,21.77158655]
[1758072250539,0.99,236.79,236.71,54.43158655]
[1758072250738,0.99,236.79,236.71,20.47204106]
[1758072251036,0.99,236.79,236.71,54.43158655]
[1758072251331,0.99,236.79,236.71,54.71590969]
[1758072251332,0.3,236.79,236.71,54.71590969]
[1758072251717,0.69,236.77,236.71,21.77158655]
[1758072251918,0.3,236.79,236.71,54.71590969]
[1758072253542,0.3,236.79,236.71,52.72404123]
[1758072254140,0.06,236.75,236.71,52.72404123]
[1758072255510,0.06,236.77,236.76,0.28432314]
[1758072255711,0.3,236.79,236.78,39.59559401]
[1758072255920,0.3,236.79,236.78,75.2032082]
[1758072256118,1e-08,236.79,236.78,75.2032082]
[1758072256639,1e-08,236.79,236.78,79.42653787]
[1758072257222,1e-08,236.79,236.78,91.8353362]
[1758072259449,1e-08,236.81,236.8,0.28432314]
[1758072259746,1e-08,236.81,236.8,49.2032082]
[1758072260333,1e-08,236.81,236.8,48.5432082]
[1758072260541,1e-08,236.81,236.8,49.2032082]
[1758072261543,1e-08,236.81,236.8,18.76289012]
[1758072261843,1e-08,236.81,236.8,53.42618117]
[1758072263145,1e-08,236.81,236.8,52.74618117]
[1758072263520,1e-08,236.81,236.8,53.40618117]
[1758072265247,1e-08,236.84,236.83,26.0]
[1758072265453,1e-08,236.84,236.83,74.23888506]
[1758072265649,1e-08,236.84,236.83,74.90888506]
[1758072266026,1e-08,236.84,236.83,39.59559401]
[1758072266347,1e-08,236.84,236.83,74.5432082]
[1758072267655,1e-08,236.84,236.83,78.76564623]
[1758072268032,1e-08,236.84,236.83,79.43564623]
[1758072269054,1e-08,236.84,236.83,78.76564623]
[1758072270864,1e-08,236.84,236.83,46.12564623]
[1758072271160,1e-08,236.84,236.83,78.76564623]
[1758072271966,1e-08,236.84,236.83,46.12564623]
[1758072272264,1e-08,236.84,236.83,78.74564623]
[1758072272563,1e-08,236.84,236.83,79.41564623]
[1758072273457,1e-08,236.84,236.83,78.74564623]
[1758072274147,1e-08,236.84,236.83,45.84132309]
[1758072274346,0.72000001,236.84,236.83,13.59559401]
[1758072274547,0.72000001,236.84,236.83,32.62]
[1758072275436,0.72000001,236.84,236.8,15.61888506]
[1758072275437,0.72000001,236.84,236.8,4.22289862]
[1758072275665,0.72,236.83,236.81,32.62]
[1758072275866,0.72,236.82,236.81,32.62]
[1758072276273,0.72,236.82,236.8,4.22289862]
[1758072276470,0.72,236.82,236.81,32.62]
[1758072277361,0.72,236.82,236.81,36.84279464]
[1758072277558,0.72,236.82,236.8,26.0]
[1758072277762,0.72,236.81,236.79,17.81860668]
[1758072277958,2.02329105,236.83,236.8,32.6]
[1758072278165,2.02329105,236.81,236.77,4.22337755]
[1758072278343,2.02329105,236.81,236.78,32.6]
[1758072278552,0.72,236.8,236.78,32.6]
[1758072278752,0.72,236.83,236.78,32.6]
[1758072278965,2.74329105,236.82,236.78,32.6]
[1758072279283,0.72,236.81,236.79,32.6]
[1758072280760,2.74329105,236.83,236.79,36.82304862]
[1758072280979,0.72,236.82,236.79,36.82304862]
[1758072283262,0.72,236.82,236.77,4.22350804]
[1758072283455,0.72,236.82,236.78,32.58]
[1758072285682,0.72,236.82,236.79,4.22315131]
[1758072285886,2.74329105,236.82,236.8,32.58]
[1758072286183,2.02329105,236.81,236.8,32.58]
[1758072286484,2.02329105,236.82,236.8,32.58]
[1758072286779,2.74329105,236.83,236.8,32.58]
[1758072287379,2.74329105,236.83,236.8,32.61]
[1758072287966,1e-08,236.84,236.81,0.67]
[1758072288157,1e-08,236.84,236.82,32.58]
[1758072288987,1e-08,236.84,236.8,0.03]
[1758072288988,2.74329105,236.83,236.8,0.03]
[1758072289163,2.74329105,236.82,236.81,32.58]
[1758072291360,2.02329105,236.82,236.81,32.58]
[1758072291868,0.72000001,236.84,236.81,32.58]
[1758072292158,0.72,236.83,236.82,32.58]
[1758072292364,2.74329105,236.83,236.82,32.58]
[1758072293297,6.96572908,236.83,236.82,32.58]
[1758072293497,2.02329105,236.83,236.82,32.58]
[1758072293694,1e-08,236.84,236.82,32.58]
[1758072296000,2.02329106,236.84,236.82,32.58]
[1758072296589,2.02329106,236.84,236.83,32.58]
[1758072297582,1e-08,236.84,236.83,32.58]
[1758072298196,1e-08,236.84,236.83,33.25]
[1758072298902,1e-08,236.84,236.83,32.58]
[1758072299400,1e-08,236.84,236.83,33.25]
[1758072300004,1e-08,236.84,236.83,32.58]
[1758072300198,0.72000001,236.84,236.83,32.58]
[1758072300578,1e-08,236.84,236.83,32.58]
[1758072300782,1e-08,236.84,236.83,33.25]
[1758072301285,1e-08,236.84,236.83,32.58]
[1758072301487,1e-08,236.84,236.83,32.56]
[1758072301793,2.74329106,236.84,236.83,32.58]
[1758072302304,6.96555081,236.84,236.83,32.58]
[1758072302686,6.96555081,236.84,236.8,0.03]
[1758072302895,6.96555081,236.84,236.81,32.58]
[1758072302896,2.02329105,236.82,236.81,32.58]
[1758072303300,2.02329105,236.83,236.81,33.25]
[1758072304010,2.02329105,236.82,236.81,33.25]
[1758072304209,2.02329105,236.83,236.81,33.25]
[1758072304384,2.02329105,236.83,236.82,0.67]
[1758072304585,2.02329106,236.84,236.82,0.67]
[1758072305297,1e-08,236.84,236.83,0.03]
[1758072305498,1e-08,236.84,236.83,0.7]
[1758072307313,1e-08,236.84,236.83,6.94572908]
[1758072310412,1e-08,236.84,236.83,4.92243803]
[1758072310591,1e-08,236.84,236.83,6.94572908]
[1758072310799,1e-08,236.84,236.83,20.54132309]
[1758072311011,1e-08,236.84,236.83,20.82564623]
[1758072311216,1e-08,236.84,236.83,53.38564623]
[1758072312892,1e-08,236.84,236.83,51.07803204]
[1758072314122,1e-08,236.84,236.83,36.81243803]
[1758072314339,1e-08,236.84,236.83,0.03]
[1758072314620,1e-08,236.84,236.83,37.48243803]
[1758072315428,1e-08,236.84,236.83,0.03]
[1758072315598,2.74329106,236.84,236.83,32.59]
[1758072316345,2.74329106,236.84,236.83,32.61]
[1758072316546,6.96555081,236.84,236.83,32.61]
[1758072316920,2.02329106,236.84,236.83,32.61]
[1758072317848,1.2954857,236.84,236.83,32.61]
[1758072318343,1.2954857,236.84,236.83,0.03]
[1758072318547,1.2954857,236.84,236.83,32.59]
[1758072323535,1.2954857,236.84,236.83,0.03]
[1758072323536,6.23774545,236.84,236.83,0.03]
[1758072323738,9.08013351,236.84,236.83,0.03]
[1758072324134,9.36445665,236.84,236.83,0.03]
[1758072324654,19.92010603,236.84,236.8,0.03]
[1758072324950,27.29548569,236.81,236.8,0.03]
[1758072325133,30.42219689,236.81,236.8,0.03]
[1758072325456,31.08219689,236.81,236.8,0.03]
[1758072325658,45.86197814,236.81,236.78,0.03]
[1758072325841,1.29548569,236.79,236.78,0.03]
[1758072326167,4.42219689,236.79,236.78,0.03]
[1758072326316,26.0,236.76,236.66,0.7]
[1758072326522,30.42219689,236.76,236.66,0.7]
[1758072326822,31.08219689,236.76,236.69,18.8]
[1758072327624,35.30588332,236.76,236.68,32.58]
[1758072328252,34.64588332,236.76,236.71,0.7]
[1758072328457,35.30588332,236.76,236.71,0.7]
[1758072328630,35.30588332,236.76,236.69,0.7]
[1758072330454,35.30588332,236.76,236.73,0.7]
[1758072330455,1.29548569,236.76,236.73,0.7]
[1758072333042,27.29548569,236.76,236.7,0.7]
[1758072333240,27.29548569,236.76,236.71,32.56]
[1758072333641,27.29548569,236.76,236.72,0.7]
[1758072333860,27.29548569,236.76,236.71,32.56]
[1758072334045,27.95548569,236.76,236.71,32.56]
[1758072334224,27.95548569,236.76,236.69,0.7]
[1758072334430,30.78779321,236.76,236.69,32.56]
[1758072335231,31.07211635,236.76,236.68,0.7]
[1758072336337,31.07211635,236.76,236.7,0.7]
[1758072337138,28.83230752,236.76,236.68,4.22510378]
[1758072337454,27.29548569,236.76,236.73,0.7]
[1758072337647,27.29548569,236.76,236.68,4.22510378]
[1758072337847,27.29548569,236.76,236.73,0.7]
[1758072338338,31.51917212,236.76,236.73,0.7]
[1758072339033,26.0,236.78,236.75,0.73]
[1758072339248,1.29548569,236.76,236.75,0.03]
[1758072339853,1.29548569,236.76,236.75,0.73]
[1758072340053,27.35548569,236.77,236.75,0.73]
[1758072340355,0.06,236.77,236.75,0.73]
[1758072340653,1.35548569,236.77,236.75,0.73]
[1758072340949,1.35548569,236.77,236.76,0.7]
[1758072342538,0.06,236.77,236.76,0.7]
[1758072342767,1.35548569,236.77,236.76,0.7]
[1758072344053,0.06,236.77,236.76,0.7]
[1758072344244,1.35548569,236.77,236.76,0.7]
[1758072345668,0.06,236.77,236.76,0.7]
[1758072346357,0.06,236.77,236.75,0.03]
[1758072346539,1.35548569,236.77,236.75,0.73]
[1758072347156,1.35548569,236.77,236.76,0.7]
[1758072347461,0.06,236.77,236.76,0.7]
[1758072348752,1.35548569,236.77,236.75,0.03]
[1758072349070,1.29548569,236.76,236.75,0.03]
[1758072350752,1.29548569,236.76,236.75,0.73]
[1758072351757,1.29548569,236.76,236.75,0.03]
[1758072351963,26.06,236.77,236.75,33.29]
[1758072352146,1.29548569,236.76,236.75,0.03]
[1758072352664,5.51917212,236.76,236.75,0.03]
[1758072357247,137.21917212,236.76,236.75,0.03]
[1758072358339,135.92368643,236.76,236.75,0.03]
[1758072358560,132.99548569,236.76,236.75,0.03]
[1758072359162,131.7,236.76,236.75,0.03]
[1758072360655,131.7,236.76,236.75,0.71]
[1758072361260,131.7,236.76,236.75,0.03]
[1758072361842,135.92368643,236.76,236.75,0.03]
[1758072362066,9.30162368,236.76,236.75,0.03]
[1758072362368,9.30162368,236.76,236.72,0.03]
[1758072362369,27.29548569,236.73,236.72,0.03]
[1758072362553,30.13361411,236.73,236.72,0.03]
[1758072362752,35.30215893,236.73,236.72,0.03]
[1758072362959,86.6396957,236.73,236.72,0.03]
[1758072363465,88.33235168,236.73,236.72,0.03]
[1758072365358,13.87991715,236.72,236.7,0.03]
[1758072365563,17.72920812,236.71,236.7,0.03]
[1758072365742,50.96920812,236.71,236.7,0.03]
[1758072366368,51.25353126,236.71,236.7,0.03]
[1758072366570,18.67353126,236.71,236.7,0.03]
[1758072366956,22.89810985,236.71,236.7,0.03]
[1758072368040,55.47810985,236.71,236.7,0.03]
[1758072369366,57.17083747,236.71,236.7,0.03]
[1758072369750,1.29548569,236.63,236.62,0.68]
[1758072369956,27.29548569,236.63,236.61,0.2]
[1758072370156,1.29548569,236.62,236.61,0.88]
[1758072370362,1.29548569,236.62,236.61,0.2]
[1758072370558,132.99548569,236.62,236.61,0.2]
[1758072372294,137.22167113,236.62,236.61,0.2]
[1758072377376,137.22167113,236.62,236.61,0.23]
[1758072377859,137.95465538,236.62,236.61,0.23]
[1758072379270,138.61465538,236.62,236.61,0.23]
[1758072379857,137.95465538,236.62,236.61,0.23]
[1758072380984,6.25465538,236.62,236.61,0.23]
[1758072381182,6.25465538,236.62,236.61,0.91]
[1758072381666,6.25465538,236.62,236.61,0.23]
[1758072383661,6.53897852,236.62,236.61,0.23]
[1758072383868,7.19897852,236.62,236.61,0.23]
[1758072384159,6.53897852,236.62,236.61,0.23]
[1758072387366,26.0,236.59,236.58,0.2]
[1758072387569,28.31279308,236.59,236.58,0.2]
[1758072387791,2.99279308,236.59,236.58,0.2]
[1758072388576,0.96432314,236.59,236.58,0.2]
[1758072388776,28.31279308,236.59,236.58,0.2]
[1758072388979,32.53951441,236.59,236.58,0.2]
[1758072390463,46.81510842,236.59,236.58,0.2]
[1758072390676,79.37510842,236.59,236.58,0.2]
[1758072390966,82.2015476,236.59,236.58,0.2]
[1758072392885,0.28432314,236.57,236.56,0.2]
[1758072393195,49.14838709,236.57,236.56,0.2]
[1758072393396,51.97482627,236.57,236.56,0.2]
[1758072394500,56.20190493,236.57,236.56,0.2]
[1758072396692,55.52190493,236.57,236.56,0.2]
[1758072396887,55.52190493,236.57,236.56,0.92]
[1758072396888,22.96190493,236.57,236.56,0.92]
[1758072397286,9.36631092,236.57,236.56,0.92]
[1758072397611,6.53987174,236.57,236.56,0.92]
[1758072398907,6.53987174,236.57,236.56,0.2]
[1758072399805,9.36790045,236.57,236.56,0.2]
[1758072400702,22.96349446,236.57,236.56,0.2]
[1758072402106,23.64349446,236.57,236.56,0.2]
[1758072402347,13.87991715,236.56,236.55,0.03]
[1758072402503,2.02846994,236.55,236.54,0.2]
[1758072402686,18.45209266,236.55,236.54,0.2]
[1758072403399,18.10753192,236.54,236.53,0.03]
[1758072403599,22.96403057,236.54,236.53,0.03]
[1758072403805,55.52403057,236.54,236.53,0.03]
[1758072406610,56.20403057,236.54,236.53,0.03]
[1758072406810,53.49556063,236.54,236.53,0.03]
[1758072407127,55.52403057,236.54,236.53,0.03]
[1758072410436,22.96403057,236.54,236.53,0.03]
[1758072410635,55.52403057,236.54,236.53,0.03]
[1758072413513,7.33996662,236.54,236.53,0.75]
[1758072413720,20.13600186,236.54,236.53,0.75]
[1758072413917,22.96403057,236.54,236.53,0.75]
[1758072414624,20.93556063,236.54,236.53,0.75]
[1758072414813,22.96403057,236.54,236.53,0.75]
[1758072415008,9.36843656,236.54,236.53,0.75]
[1758072415326,6.54040785,236.54,236.53,0.75]
[1758072416409,2.31279308,236.54,236.53,0.75]
[1758072416811,6.54040785,236.54,236.53,0.75]
[1758072418919,6.54040785,236.54,236.53,0.03]
[1758072419934,6.54040785,236.54,236.53,0.71]
[1758072421834,26.28432314,236.54,236.53,0.71]
[1758072422036,2.82802871,236.54,236.53,0.71]
[1758072422346,2.02846994,236.54,236.53,0.71]
[1758072422535,2.82802871,236.56,236.53,0.71]
[1758072422711,2.02846994,236.55,236.53,0.71]
[1758072423031,26.0,236.55,236.53,0.71]
[1758072425039,28.02846994,236.56,236.53,4.93778086]
[1758072425234,4.28672425,236.59,236.54,0.68]
[1758072425235,0.06,236.59,236.54,0.68]
[1758072425636,2.90299901,236.59,236.54,0.68]
[1758072426343,0.06,236.59,236.54,2.70846994]
[1758072426552,0.06,236.59,236.55,0.68]
[1758072426717,0.06,236.59,236.56,2.02846994]
[1758072426915,0.06,236.59,236.57,2.70846994]
[1758072427117,0.06,236.59,236.58,4.22689999]
[1758072427428,0.06,236.59,236.58,4.90689999]
[1758072427834,0.06,236.59,236.58,6.93536993]
[1758072428831,0.06,236.59,236.58,4.90689999]
[1758072435224,0.06,236.59,236.58,37.44689999]
[1758072438525,0.06,236.59,236.58,39.47536993]
[1758072439926,0.06,236.59,236.58,38.74425407]
[1758072440130,0.06,236.59,236.58,52.33984808]
[1758072440329,1e-08,236.59,236.58,65.28583416]
[1758072440527,1e-08,236.59,236.58,54.31646915]
[1758072441253,1e-08,236.59,236.58,67.26615669]
[1758072448243,0.06,236.64,236.62,26.0]
[1758072448454,1e-08,236.64,236.63,47.71727123]
[1758072448952,1e-08,236.64,236.63,50.48181193]
[1758072449745,1e-08,236.64,236.63,17.94181193]
[1758072449937,1e-08,236.64,236.63,50.48181193]
[1758072450137,1e-08,236.64,236.63,54.70781877]
[1758072450854,0.06,236.76,236.68,0.28432314]
[1758072451056,0.06,236.76,236.72,1.29735408]
[1758072451258,0.06,236.76,236.73,33.19]
[1758072451465,0.06,236.76,236.73,32.54]
[1758072452561,0.06,236.76,236.74,4.22404325]
[1758072452779,0.06,236.76,236.75,32.52]
[1758072455076,0.06,236.76,236.75,36.74386483]
[1758072456866,0.06,236.76,236.75,32.52]
[1758072457068,2.04735408,236.76,236.75,32.52]
[1758072458841,2.04735408,236.76,236.7,4.22475707]
[1758072459047,1.29735408,236.73,236.7,4.22475707]
[1758072459263,1.98735408,236.72,236.71,32.52]
[1758072459442,1.29735408,236.72,236.71,32.52]
[1758072459763,1.29735408,236.73,236.71,32.52]
[1758072459955,1.98735408,236.74,236.71,32.52]
[1758072461067,0.69,236.74,236.71,32.52]
[1758072461272,1.98735408,236.74,236.71,32.52]
[1758072462075,1.98735408,236.74,236.69,4.22493556]
[1758072462275,1.98735408,236.74,236.7,32.52]
[1758072462872,1.29735408,236.73,236.7,32.52]
[1758072463573,1.29735408,236.73,236.7,36.74465307]
[1758072463771,1.29735408,236.73,236.7,37.39465307]
[1758072467567,1.29735408,236.71,236.66,0.65]
[1758072467772,1.29735408,236.69,236.67,33.17]
[1758072468072,1.29735408,236.72,236.68,0.65]
[1758072468464,1.29735408,236.72,236.69,0.65]
[1758072468660,1.29735408,236.72,236.7,32.52]
[1758072476278,1.98735408,236.71,236.65,0.69]
[1758072476494,1.29735408,236.7,236.66,33.21]
[1758072476664,1.29735408,236.7,236.67,0.69]
[1758072477058,1.29735408,236.7,236.68,32.52]
[1758072477267,4.91420426,236.74,236.68,33.21]
[1758072477464,1.29735408,236.7,236.68,33.21]
[1758072478075,1.29735408,236.71,236.68,36.74509037]
[1758072478273,1.29735408,236.71,236.69,0.69]
[1758072478889,1.29735408,236.72,236.7,0.69]
[1758072479181,1.29735408,236.72,236.71,32.52]
[1758072479370,1.29735408,236.72,236.71,33.21]
[1758072481072,1.29735408,236.73,236.71,37.43457859]
[1758072481278,1.29735408,236.74,236.72,0.69]
[1758072481478,26.06,236.76,236.73,0.69]
[1758072481479,0.06,236.76,236.73,0.69]
[1758072481684,0.06,236.76,236.74,32.5]
[1758072482076,0.06,236.76,236.75,0.69]
[1758072482459,0.06,236.76,236.75,18.50945884]
[1758072489503,0.06,236.76,236.75,18.79378198]
[1758072489789,0.26,236.79,236.78,39.87991715]
[1758072489790,1e-08,236.79,236.78,39.87991715]
[1758072489988,1e-08,236.79,236.78,78.32293386]
[1758072490196,1e-08,236.79,236.78,79.01293386]
[1758072490493,1e-08,236.79,236.78,77.71557978]
[1758072490993,1e-08,236.79,236.78,79.40637551]
[1758072491886,1e-08,236.79,236.78,20.19971941]
[1758072492088,1e-08,236.79,236.78,51.00892368]
[1758072496477,1e-08,236.79,236.76,4.2235761]
[1758072496700,1e-08,236.79,236.77,46.09559401]
[1758072497007,1e-08,236.79,236.78,32.5]
[1758072497182,1e-08,236.79,236.78,46.09559401]
[1758072497378,1e-08,236.79,236.78,46.78559401]
[1758072499489,0.06000001,236.79,236.78,51.00892368]
[1758072500187,0.06000001,236.79,236.78,53.01293386]
[1758072501899,0.06000001,236.79,236.78,53.73889817]
[1758072502277,0.06000001,236.79,236.78,20.81656521]
[1758072502481,0.06000001,236.79,236.78,53.31656521]
[1758072509209,0.06000001,236.79,236.78,53.29656521]
[1758072509980,0.06000001,236.79,236.78,18.10324682]
[1758072510209,0.06000001,236.79,236.78,52.60656521]
[1758072510394,0.06000001,236.79,236.78,53.31656521]
[1758072512823,0.06000001,236.79,236.78,50.29892368]
[1758072513935,0.74000001,236.79,236.78,46.07559401]
[1758072514219,0.06000001,236.79,236.78,46.07559401]
[1758072516015,0.06000001,236.79,236.78,46.10559401]
[1758072517502,0.06000001,236.79,236.78,32.51]
[1758072518789,0.06000001,236.79,236.78,51.03892368]
[1758072519100,0.06000001,236.79,236.78,77.74557978]
[1758072522191,0.06000001,236.79,236.78,45.26557978]
[1758072522397,0.06000001,236.79,236.78,79.76889817]
[1758072524816,1e-08,236.79,236.78,53.76889817]
[1758072525115,1e-08,236.79,236.78,51.74557978]
[1758072525307,1e-08,236.79,236.78,53.76889817]
[1758072533407,1e-08,236.79,236.78,21.28889817]
[1758072533617,1e-08,236.79,236.78,53.76889817]
[1758072537627,1e-08,236.79,236.78,21.28889817]
[1758072537925,1e-08,236.79,236.78,53.05889817]
[1758072539030,1e-08,236.79,236.78,17.84892368]
[1758072539334,1e-08,236.79,236.78,52.63656521]
[1758072539531,1e-08,236.79,236.78,52.49440364]
[1758072539831,1e-08,236.79,236.78,52.63656521]
[1758072540721,1e-08,236.79,236.78,20.15656521]
[1758072540912,1e-08,236.79,236.78,52.63656521]
[1758072543022,1e-08,236.79,236.78,20.15656521]
[1758072543224,1e-08,236.79,236.78,52.63656521]
[1758072543632,1e-08,236.79,236.78,53.30656521]
[1758072543835,1e-08,236.79,236.78,53.72889817]
[1758072544213,1e-08,236.8,236.79,13.87991715]
[1758072544538,1e-08,236.8,236.79,14.54991715]
[1758072545335,1e-08,236.82,236.81,39.87991715]
[1758072545540,1e-08,236.83,236.82,13.59559401]
[1758072545722,1e-08,236.83,236.82,14.26559401]
[1758072546110,1e-08,236.83,236.82,26.92622623]
[1758072547023,1e-08,236.83,236.82,31.14884256]
[1758072547329,1e-08,236.83,236.82,33.17216095]
[1758072547535,1e-08,236.83,236.82,64.98216095]
[1758072547722,1e-08,236.83,236.82,30.47884256]
[1758072547923,1e-08,236.83,236.82,64.98216095]
[1758072548130,1e-08,236.83,236.82,62.95884256]
[1758072548823,1e-08,236.83,236.82,30.47884256]
[1758072549026,0.71000001,236.83,236.82,50.29821034]
[1758072551235,0.71000001,236.83,236.79,10.55787828]
[1758072551544,0.71,236.82,236.8,50.29856698]
[1758072551847,2.0233184,236.83,236.8,50.29856698]
[1758072552042,0.71,236.81,236.8,50.29856698]
[1758072553734,2.7333184,236.83,236.8,50.29856698]
[1758072553946,0.71,236.82,236.8,50.29856698]
[1758072555449,1e-08,236.83,236.8,50.29856698]
[1758072556045,0.71000001,236.83,236.8,50.29856698]
[1758072556231,0.71000001,236.83,236.81,32.48]
[1758072556751,1e-08,236.83,236.81,32.48]
[1758072556943,0.71,236.82,236.81,46.07559401]
[1758072557458,1e-08,236.83,236.82,4.22261633]
[1758072557656,1e-08,236.83,236.82,17.81821034]